bitfinex/quotes_BTCUSD_20251029
["timestamp","ask_amount","ask_price","bid_price","bid_amount"]
[1761716214590,0.45746738,113310.0,113300.0,0.11586]
[1761716216040,0.5366967,113310.0,113300.0,0.11586]
[1761716216252,0.5366967,113310.0,113300.0,0.06869]
[1761716216253,0.50494539,113310.0,113300.0,0.06869]
[1761716216457,1.15598487,113310.0,113290.0,0.041388]
[1761716216660,0.49597232,113300.0,113290.0,0.072198]
[1761716216860,0.53152444,113300.0,113290.0,0.072198]
[1761716217264,0.53152444,113300.0,113290.0,0.119368]
[1761716217699,0.53152444,113300.0,113290.0,0.072198]
[1761716217899,0.53979868,113300.0,113290.0,0.072198]
[1761716218319,0.71632118,113300.0,113290.0,0.072198]
[1761716218548,0.66884317,113300.0,113290.0,0.119368]
[1761716219405,0.47833067,113300.0,113290.0,0.119368]
[1761716219674,0.47833067,113300.0,113290.0,0.31355988]
[1761716219975,0.10760712,113300.0,113290.0,0.119368]
[1761716220194,0.10760712,113300.0,113290.0,0.1370218]
[1761716220409,0.07560712,113300.0,113290.0,0.31355988]
[1761716220631,0.07560712,113300.0,113290.0,0.29590608]
[1761716222891,0.02481464,113300.0,113290.0,0.29590608]
[1761716224277,0.02481464,113300.0,113290.0,0.38572509]
[1761716224510,0.00827424,113300.0,113290.0,0.75644864]
[1761716224751,0.00021171,113310.0,113300.0,0.1765225]
[1761716224968,0.00847978,113310.0,113300.0,0.2452125]
[1761716225180,0.00847978,113310.0,113300.0,0.2923825]
[1761716225394,0.02501593,113310.0,113300.0,0.2923825]
[1761716226144,0.02501593,113310.0,113300.0,0.38220151]
[1761716226357,0.00847978,113310.0,113300.0,0.75292506]
[1761716226573,0.00021171,113310.0,113300.0,0.38220151]
[1761716231167,0.00021171,113310.0,113300.0,0.75292506]
[1761716237971,0.00021171,113310.0,113300.0,0.75392506]
[1761716239203,0.00021171,113310.0,113300.0,1.09392506]
[1761716239420,0.00021171,113310.0,113300.0,1.50083089]
[1761716239790,0.00021171,113310.0,113300.0,1.52734065]
[1761716240413,0.00021171,113310.0,113300.0,1.52634065]
[1761716240615,0.00021171,113310.0,113300.0,1.53598449]
[1761716240833,0.00021171,113310.0,113300.0,1.53698449]
[1761716241789,0.00021171,113310.0,113300.0,1.53598449]
[1761716241997,0.00021171,113310.0,113300.0,1.12043482]
[1761716242216,0.00021171,113310.0,113300.0,1.12143482]
[1761716242438,0.00021171,113310.0,113300.0,1.52834065]
[1761716243511,0.00021171,113310.0,113300.0,1.90607043]
[1761716243948,0.00021171,113310.0,113300.0,1.90807043]
[1761716247250,1e-08,113310.0,113300.0,1.90807043]
[1761716252963,1e-08,113310.0,113300.0,3.01921586]
[1761716253636,1e-08,113310.0,113300.0,3.12221585]
[1761716254094,1e-08,113310.0,113300.0,3.20269585]
[1761716254350,1e-08,113310.0,113300.0,3.20469585]
[1761716254570,1e-08,113310.0,113300.0,3.20869585]
[1761716254791,1e-08,113310.0,113300.0,3.20469585]
[1761716255035,1e-08,113310.0,113300.0,3.20969585]
[1761716255240,0.00804,113330.0,113320.0,1.28763678]
[1761716255449,0.00804,113330.0,113320.0,1.40759579]
[1761716255881,0.00804,113330.0,113320.0,1.45327579]
[1761716256076,0.00804,113330.0,113320.0,1.46131579]
[1761716256282,0.0002,113340.0,113330.0,0.21265805]
[1761716256438,0.00068358,113340.0,113330.0,1.48663068]
[1761716256651,0.00068358,113340.0,113330.0,1.85701249]
[1761716256857,0.00068358,113340.0,113330.0,1.48663068]
[1761716257078,0.00068358,113340.0,113330.0,1.51137652]
[1761716257432,0.00068358,113340.0,113330.0,1.57678152]
[1761716257857,0.00068358,113340.0,113330.0,1.57778152]
[1761716258246,0.00068358,113340.0,113330.0,1.57878152]
[1761716261274,0.00068358,113340.0,113330.0,0.73643062]
[1761716261477,0.00893219,113340.0,113330.0,0.71168478]
[1761716261702,0.00956713,113340.0,113330.0,1.4514484]
[1761716261907,0.00956713,113340.0,113330.0,1.08106659]
[1761716262112,0.00956713,113340.0,113330.0,1.4514484]
[1761716262628,0.00956713,113340.0,113330.0,1.4504484]
[1761716262833,0.00956713,113340.0,113330.0,1.85901249]
[1761716263035,0.00956713,113340.0,113330.0,1.5086424]
[1761716263248,0.00956713,113340.0,113330.0,1.5066424]
[1761716264157,0.00956713,113340.0,113330.0,1.5076424]
[1761716264371,0.00956713,113340.0,113330.0,1.5066424]
[1761716264632,0.00956713,113340.0,113330.0,1.46946012]
[1761716264836,0.00956713,113340.0,113330.0,1.47046012]
[1761716265813,0.00956713,113340.0,113330.0,1.47246012]
[1761716266388,0.00956713,113340.0,113330.0,1.5086424]
[1761716267180,0.00956713,113340.0,113330.0,0.7316965]
[1761716267388,0.00956713,113340.0,113330.0,1.08306659]
[1761716267587,0.00956713,113340.0,113330.0,1.4534484]
[1761716268124,0.00956713,113340.0,113330.0,1.4524484]
[1761716268733,0.00956713,113340.0,113330.0,1.4504484]
[1761716269088,0.00956713,113340.0,113330.0,1.48663068]
[1761716269286,0.00956713,113340.0,113330.0,1.51413437]
[1761716269708,0.00956713,113340.0,113330.0,1.4514484]
[1761716269859,0.00956713,113340.0,113330.0,1.4524484]
[1761716270261,0.27045758,113370.0,113360.0,0.20725907]
[1761716270463,0.01663421,113370.0,113360.0,0.20725907]
[1761716270675,0.01663421,113370.0,113360.0,0.62509088]
[1761716270901,0.00012799,113370.0,113360.0,0.62509088]
[1761716271251,0.01411799,113370.0,113360.0,0.20725907]
[1761716271449,0.00012799,113370.0,113360.0,0.25470907]
[1761716272865,0.56091331,113370.0,113350.0,0.22389464]
[1761716273092,0.38437181,113360.0,113350.0,0.20727464]
[1761716273295,0.38437181,113360.0,113350.0,0.25472464]
[1761716273296,0.01650811,113360.0,113350.0,0.25472464]
[1761716273704,0.56343142,113370.0,113350.0,0.25472464]
[1761716273999,0.57242142,113370.0,113360.0,0.03083]
[1761716274173,0.57242142,113370.0,113360.0,0.02508939]
[1761716274877,0.6622496,113370.0,113360.0,0.02508939]
[1761716275086,0.6622496,113370.0,113360.0,0.01647847]
[1761716275534,0.01664527,113370.0,113360.0,0.24035754]
[1761716275759,0.21639878,113370.0,113360.0,0.01647847]
[1761716275972,0.04061996,113370.0,113360.0,0.19290754]
[1761716276362,0.01727996,113370.0,113360.0,0.24035754]
[1761716276564,0.01727996,113370.0,113360.0,0.19290754]
[1761716276565,0.04061996,113370.0,113360.0,0.19290754]
[1761716276939,0.04061996,113370.0,113360.0,0.24035754]
[1761716277187,0.01727996,113370.0,113360.0,0.24035754]
[1761716277369,0.38766177,113370.0,113360.0,0.24035754]
[1761716278748,0.01727996,113370.0,113360.0,0.24035754]
[1761716279178,0.652075,113370.0,113360.0,0.01647847]
[1761716279397,0.47566149,113370.0,113360.0,0.19290754]
[1761716279598,0.48501149,113370.0,113360.0,0.19290754]
[1761716279803,0.48501149,113370.0,113360.0,0.23003754]
[1761716280004,0.48502707,113370.0,113360.0,0.23003754]
[1761716280236,0.66144058,113370.0,113360.0,0.05360847]
[1761716280405,0.70891859,113370.0,113360.0,0.23003754]
[1761716280962,0.64425887,113370.0,113360.0,0.23003754]
[1761716281161,0.64425887,113370.0,113360.0,0.05360847]
[1761716281508,0.27387706,113370.0,113360.0,0.05360847]
[1761716281829,0.17643035,113360.0,113340.0,0.03713]
[1761716282035,0.41299181,113350.0,113340.0,0.17645899]
[1761716282227,0.08646794,113350.0,113340.0,0.21358899]
[1761716282418,0.06312794,113350.0,113340.0,0.29186899]
[1761716282608,0.06312794,113350.0,113340.0,0.2918702]
[1761716284544,0.04385794,113350.0,113340.0,0.66225201]
[1761716286134,0.04385794,113350.0,113340.0,0.2918702]
[1761716287132,0.02501359,113350.0,113340.0,0.66225201]
[1761716287574,0.02501359,113350.0,113340.0,1.03263382]
[1761716288210,0.02501359,113350.0,113340.0,0.66225201]
[1761716289257,0.02501359,113350.0,113340.0,1.12245283]
[1761716290510,0.02500743,113350.0,113340.0,1.12245283]
[1761716292712,0.00847457,113350.0,113340.0,1.12445283]
[1761716293445,0.00847457,113350.0,113340.0,1.46445283]
[1761716293854,0.0002116,113350.0,113340.0,1.46445283]
[1761716295949,0.37885638,113350.0,113340.0,0.2938702]
[1761716296168,0.15472965,113350.0,113340.0,0.2938702]
[1761716296381,0.1356737,113350.0,113340.0,0.2464202]
[1761716296595,0.1123337,113350.0,113340.0,0.2939702]
[1761716297048,0.03996039,113350.0,113340.0,0.2939702]
[1761716299046,0.02500419,113350.0,113340.0,0.2939702]
[1761716299250,0.02500419,113350.0,113340.0,0.2929702]
[1761716299633,0.02500419,113350.0,113340.0,0.66235201]
[1761716300858,0.02500419,113350.0,113340.0,0.2919702]
[1761716301658,0.02500419,113350.0,113340.0,0.66235201]
[1761716301872,0.02500419,113350.0,113340.0,1.12255283]
[1761716302081,0.00847457,113350.0,113340.0,1.12255283]
[1761716302282,0.00847457,113350.0,113340.0,0.75217102]
[1761716303280,0.02500586,113350.0,113340.0,0.38178921]
[1761716303482,0.02500586,113350.0,113340.0,0.75217102]
[1761716304076,0.00847457,113350.0,113340.0,0.75217102]
[1761716304279,0.02500705,113350.0,113340.0,0.75217102]
[1761716305026,0.00847457,113350.0,113340.0,0.75217102]
[1761716305428,0.00847457,113350.0,113340.0,0.75206635]
[1761716306188,4.57e-06,113350.0,113340.0,1.46234349]
[1761716306373,0.09855325,113370.0,113360.0,0.17642907]
[1761716306374,0.0674542,113370.0,113360.0,0.17642907]
[1761716306581,0.0166599,113370.0,113360.0,0.20647907]
[1761716306776,0.00012799,113370.0,113360.0,0.25402907]
[1761716309288,0.42119943,113370.0,113360.0,0.0776]
[1761716309489,0.60936856,113370.0,113360.0,0.20647907]
[1761716309820,0.0932962,113370.0,113360.0,0.25402907]
[1761716310094,0.0671962,113370.0,113360.0,0.25402907]
[1761716311831,0.04827026,113370.0,113360.0,0.25402907]
[1761716312010,0.04869337,113370.0,113360.0,0.25402907]
[1761716312430,0.01695502,113370.0,113360.0,0.25402907]
[1761716312635,0.00042311,113370.0,113360.0,0.25402907]
[1761716313186,0.00042311,113370.0,113360.0,0.25602907]
[1761716313814,0.00042311,113370.0,113360.0,0.71712522]
[1761716314245,0.00042311,113370.0,113360.0,0.34684808]
[1761716318423,0.00868277,113370.0,113360.0,0.71712522]
[1761716318664,0.02521468,113370.0,113360.0,0.71712522]
[1761716324467,0.02521468,113370.0,113360.0,0.74902522]
[1761716324915,0.02521468,113370.0,113360.0,0.37874808]
[1761716325945,0.02521468,113370.0,113360.0,0.74902522]
[1761716329262,0.02521468,113370.0,113360.0,1.08902522]
[1761716331216,0.02549681,113370.0,113360.0,1.08902522]
[1761716332429,0.02521468,113370.0,113360.0,1.08874309]
[1761716335395,0.66209228,113370.0,113360.0,0.06466787]
[1761716335599,0.29181514,113370.0,113360.0,0.06466787]
[1761716335803,0.29181514,113370.0,113360.0,0.28774694]
[1761716336008,0.29181514,113370.0,113360.0,0.11131787]
[1761716336208,0.29181514,113370.0,113360.0,0.11031787]
[1761716336412,0.38163415,113370.0,113360.0,0.11031787]
[1761716336622,0.66209228,113370.0,113360.0,0.06466787]
[1761716336820,0.29181514,113370.0,113360.0,0.06466787]
[1761716337025,0.29181514,113370.0,113360.0,0.06266787]
[1761716337229,0.3394461,113370.0,113360.0,0.06366787]
[1761716337371,0.42926511,113370.0,113360.0,0.06366787]
[1761716338175,0.70972324,113370.0,113360.0,0.03176787]
[1761716338377,0.30770775,113370.0,113360.0,0.03176787]
[1761716338802,0.33945563,113370.0,113360.0,0.06366787]
[1761716339803,0.30770775,113370.0,113360.0,0.06366787]
[1761716341308,0.30770775,113370.0,113360.0,0.11031787]
[1761716341520,0.30789202,113370.0,113360.0,0.11031787]
[1761716341714,0.42927103,113370.0,113360.0,0.06366787]
[1761716342138,0.42927103,113370.0,113360.0,0.11031787]
[1761716342851,0.42927103,113370.0,113360.0,0.06366787]
[1761716343972,0.70972916,113370.0,113360.0,0.06366787]
[1761716344173,0.33945202,113370.0,113360.0,0.06366787]
[1761716345279,0.70972916,113370.0,113360.0,0.06366787]
[1761716345931,0.70972916,113370.0,113360.0,0.11031787]
[1761716346373,0.30789202,113370.0,113360.0,0.11031787]
[1761716346771,0.30003202,113370.0,113360.0,0.28674694]
[1761716346979,0.25240106,113370.0,113360.0,0.28674694]
[1761716347845,0.25240106,113370.0,113360.0,0.11031787]
[1761716350155,0.25240106,113370.0,113360.0,0.28674694]
[1761716350564,0.23337246,113370.0,113360.0,0.28674694]
[1761716351338,0.08075409,113370.0,113360.0,0.28674694]
[1761716352456,0.04900982,113370.0,113360.0,0.65702408]
[1761716352662,0.04900982,113370.0,113360.0,0.28674694]
[1761716353310,0.04900982,113370.0,113360.0,0.28574694]
[1761716353515,0.04900982,113370.0,113360.0,0.28474694]
[1761716353656,0.07662793,113370.0,113360.0,0.28574694]
[1761716353855,0.04900982,113370.0,113360.0,0.28974694]
[1761716354504,0.02379522,113380.0,113370.0,0.20788351]
[1761716354745,0.02379522,113380.0,113370.0,0.28707351]
[1761716355073,0.02400673,113380.0,113370.0,0.28707351]
[1761716356324,0.02400673,113380.0,113370.0,0.28807351]
[1761716356846,0.02400673,113380.0,113370.0,0.29007351]
[1761716357467,0.00021151,113380.0,113370.0,0.29007351]
[1761716366450,0.00847186,113380.0,113370.0,0.29007351]
[1761716366775,0.02499257,113380.0,113370.0,0.29007351]
[1761716367601,0.02499257,113380.0,113370.0,0.66022413]
[1761716367806,0.02499257,113380.0,113370.0,0.29007351]
[1761716368006,0.02499257,113380.0,113370.0,0.66022413]
[1761716368216,0.02499257,113380.0,113370.0,0.29007351]
[1761716368415,0.02499257,113380.0,113370.0,0.66022413]
[1761716368783,0.02499257,113380.0,113370.0,0.29007351]
[1761716370382,0.02499124,113380.0,113370.0,0.29007351]
[1761716372399,0.39514186,113380.0,113370.0,0.29007351]
[1761716372668,1.00872094,113380.0,113370.0,0.06543]
[1761716372836,1.04081094,113380.0,113370.0,0.003]
[1761716372988,1.0563519,113380.0,113370.0,0.003]
[1761716373196,1.0563519,113380.0,113370.0,0.001]
[1761716373499,1.14617091,113380.0,113370.0,0.001]
[1761716373698,1.0563519,113380.0,113370.0,0.03196]
[1761716373903,0.68620128,113380.0,113370.0,0.03196]
[1761716374123,1.0563519,113380.0,113370.0,0.03196]
[1761716374322,1.0563519,113380.0,113370.0,0.03096]
[1761716374726,1.0563519,113380.0,113370.0,0.06243]
[1761716374908,1.14142883,113380.0,113370.0,0.06243]
[1761716376191,0.26805066,113380.0,113370.0,0.11066]
[1761716376391,0.26805066,113380.0,113370.0,0.28707351]
[1761716376603,0.2204197,113380.0,113370.0,0.28707351]
[1761716376806,0.20138919,113380.0,113370.0,0.28707351]
[1761716377069,0.02499124,113380.0,113370.0,0.28707351]
[1761716377491,0.02499124,113380.0,113370.0,0.28807351]
[1761716377710,0.02499124,113380.0,113370.0,0.28907351]
[1761716378114,0.02499124,113380.0,113370.0,0.27319351]
[1761716378890,0.20138919,113380.0,113370.0,0.27319351]
[1761716379100,0.57153981,113380.0,113370.0,0.27319351]
[1761716379302,0.2204197,113380.0,113370.0,0.27319351]
[1761716379509,0.20138919,113380.0,113370.0,0.27319351]
[1761716381414,0.57153981,113380.0,113370.0,0.27319351]
[1761716381560,0.59057032,113380.0,113370.0,0.27319351]
[1761716382103,0.67360985,113380.0,113370.0,0.09678]
[1761716382506,1.09080047,113380.0,113370.0,0.04855]
[1761716383123,0.67360985,113380.0,113370.0,0.09594]
[1761716384399,0.70536728,113380.0,113370.0,0.09594]
[1761716385321,0.62232775,113380.0,113370.0,0.09594]
[1761716386156,0.25217713,113380.0,113370.0,0.09594]
[1761716386356,0.62232775,113380.0,113370.0,0.09594]
[1761716388041,0.62232775,113380.0,113370.0,0.27235351]
[1761716390839,0.4459298,113380.0,113370.0,0.27235351]
[1761716391478,0.62232775,113380.0,113370.0,0.27235351]
[1761716391694,0.07577918,113380.0,113370.0,0.27235351]
[1761716392121,0.07577918,113380.0,113370.0,0.29885575]
[1761716392962,0.25217713,113380.0,113370.0,0.29885575]
[1761716393170,0.33681141,113380.0,113370.0,0.29885575]
[1761716393388,0.70696203,113380.0,113370.0,0.09594]
[1761716393564,0.4459298,113380.0,113370.0,0.27235351]
[1761716393774,0.07577918,113380.0,113370.0,0.27235351]
[1761716396493,0.04763096,113390.0,113370.0,0.27235351]
[1761716396758,0.07561745,113390.0,113380.0,0.20920795]
[1761716396957,0.07561745,113390.0,113380.0,0.26675795]
[1761716397176,0.04386252,113390.0,113380.0,0.29325587]
[1761716397384,0.02480901,113390.0,113380.0,0.38307488]
[1761716398158,0.02480901,113390.0,113380.0,0.29325587]
[1761716398370,0.39495963,113390.0,113380.0,0.29325587]
[1761716398514,0.02480901,113390.0,113380.0,0.29325587]
[1761716398721,0.39495963,113390.0,113380.0,0.29325587]
[1761716400135,0.02480901,113390.0,113380.0,0.29325587]
[1761716400288,0.39495963,113390.0,113380.0,0.29325587]
[1761716400919,0.60250202,113390.0,113380.0,0.06946792]
[1761716401152,0.60250202,113390.0,113380.0,0.04297]
[1761716401349,0.42611963,113390.0,113380.0,0.04297]
[1761716401551,0.57134202,113390.0,113380.0,0.09036]
[1761716402506,0.57155351,113390.0,113380.0,0.09036]
[1761716402707,0.39517112,113390.0,113380.0,0.26675795]
[1761716403271,0.0250205,113390.0,113380.0,0.26675795]
[1761716404690,0.39517112,113390.0,113380.0,0.26675795]
[1761716405102,0.38690145,113390.0,113380.0,0.26775795]
[1761716405306,0.19313322,113390.0,113380.0,0.09136]
[1761716405508,0.56328384,113390.0,113380.0,0.09236]
[1761716405717,0.38690145,113390.0,113380.0,0.26875795]
[1761716406157,0.56328384,113390.0,113380.0,0.26875795]
[1761716406362,0.38690145,113390.0,113380.0,0.26875795]
[1761716406601,0.54672137,113400.0,113380.0,0.26875795]
[1761716406797,0.37015062,113390.0,113380.0,0.18855795]
[1761716407354,0.37015062,113390.0,113380.0,0.26844795]
[1761716407935,0.17665594,113400.0,113380.0,0.26844795]
[1761716408134,0.17665594,113400.0,113390.0,0.65367301]
[1761716408135,0.34028519,113400.0,113390.0,0.65367301]
[1761716408357,0.34028519,113400.0,113390.0,0.28352239]
[1761716408589,0.02759244,113400.0,113390.0,0.28352239]
[1761716408773,0.00855023,113400.0,113390.0,0.28352239]
[1761716409449,0.37870085,113400.0,113390.0,0.28452239]
[1761716409676,0.39774306,113400.0,113390.0,0.28452239]
[1761716409916,0.39774306,113400.0,113390.0,0.28552239]
[1761716410331,0.5741099,113400.0,113390.0,0.28552239]
[1761716411798,0.5741099,113400.0,113390.0,0.31202032]
[1761716412016,0.97630052,113400.0,113390.0,0.08782793]
[1761716412223,0.54395928,113400.0,113390.0,0.13637793]
[1761716412431,0.73774306,113400.0,113390.0,0.10988]
[1761716412633,0.9141099,113400.0,113390.0,0.13637796]
[1761716413271,0.54395928,113400.0,113390.0,0.13637796]
[1761716413462,0.9141099,113400.0,113390.0,0.13637796]
[1761716413882,1.34630198,113400.0,113390.0,0.08782796]
[1761716414086,1.28447198,113400.0,113390.0,0.10988]
[1761716414453,0.9381145,113400.0,113390.0,0.10988]
[1761716414798,0.57052206,113400.0,113390.0,0.10988]
[1761716415210,0.57052206,113400.0,113390.0,0.13637798]
[1761716415417,0.60256206,113400.0,113390.0,0.06133]
[1761716415827,0.97271268,113400.0,113390.0,0.06133]
[1761716416491,0.97271268,113400.0,113390.0,0.02925]
[1761716416492,1.05140268,113400.0,113390.0,0.02925]
[1761716416693,1.02760954,113400.0,113390.0,0.0623]
[1761716417261,0.60855892,113400.0,113390.0,0.0623]
[1761716417450,0.54672892,113400.0,113390.0,0.11085]
[1761716417646,0.54672892,113400.0,113390.0,0.10985]
[1761716417850,0.91687954,113400.0,113390.0,0.10985]
[1761716418261,0.57876892,113400.0,113390.0,0.0613]
[1761716418463,0.96544569,113400.0,113390.0,0.0613]
[1761716418661,0.96544569,113400.0,113390.0,0.0603]
[1761716418872,0.99523569,113400.0,113390.0,0.0603]
[1761716419437,1.04413569,113400.0,113390.0,0.02725]
[1761716419995,1.04413569,113400.0,113380.0,0.03665939]
[1761716420264,0.63216315,113390.0,113380.0,0.06970939]
[1761716420466,0.04032629,113390.0,113380.0,0.58320796]
[1761716420606,0.01652615,113390.0,113380.0,0.58320796]
[1761716420839,0.58705521,113400.0,113380.0,0.24610734]
[1761716421033,0.61909521,113400.0,113390.0,0.0292]
[1761716421206,0.21690459,113400.0,113390.0,0.1108]
[1761716422060,0.04053775,113400.0,113390.0,0.67497124]
[1761716422264,0.04053775,113400.0,113390.0,0.28718239]
[1761716422467,0.01673761,113400.0,113390.0,0.31368032]
[1761716422886,0.43417576,113410.0,113390.0,0.31368032]
[1761716423086,0.64242879,113410.0,113390.0,0.31368032]
[1761716423846,0.67409879,113410.0,113400.0,0.03161]
[1761716424045,0.31276573,113410.0,113400.0,0.03797]
[1761716424243,0.63451635,113410.0,113400.0,0.03797]
[1761716424565,0.63472778,113410.0,113400.0,0.03797]
[1761716424961,0.17636684,113400.0,113390.0,0.02749793]
[1761716425178,0.28580684,113400.0,113390.0,0.02649793]
[1761716425386,0.6797576,113400.0,113390.0,0.03161]
[1761716425586,0.6313576,113400.0,113390.0,0.04159]
[1761716425791,0.00021143,113410.0,113400.0,0.03161]
[1761716425998,0.02401484,113410.0,113400.0,0.28586114]
[1761716426227,0.00021143,113410.0,113400.0,0.23417684]
[1761716426698,0.00021143,113410.0,113400.0,0.05781]
[1761716426903,0.00847362,113410.0,113400.0,0.03161]
[1761716427144,0.58664553,113410.0,113400.0,0.03161]
[1761716427349,0.26490271,113410.0,113400.0,0.03161]
[1761716427561,0.68345333,113410.0,113400.0,0.03161]
[1761716427782,0.29426491,113410.0,113400.0,0.03161]
[1761716427995,0.0885507,113410.0,113400.0,0.20997684]
[1761716428214,0.06951362,113410.0,113400.0,0.03161]
[1761716428453,0.24586491,113410.0,113400.0,0.03161]
[1761716428662,0.24586491,113410.0,113400.0,0.20897684]
[1761716428663,0.0885507,113410.0,113400.0,0.20897684]
[1761716428870,0.00847362,113410.0,113400.0,0.20897684]
[1761716429107,0.00847362,113410.0,113400.0,0.20997684]
[1761716430405,0.00847362,113410.0,113400.0,0.2364719]
[1761716430606,0.00847362,113410.0,113400.0,0.20997684]
[1761716430812,0.00847362,113410.0,113400.0,0.23617684]
[1761716432634,0.00847362,113410.0,113400.0,0.60615137]
[1761716434527,0.00847362,113410.0,113400.0,0.23617684]
[1761716434665,0.00847362,113410.0,113400.0,0.60615137]
[1761716435270,0.00847362,113410.0,113400.0,0.23617684]
[1761716435678,0.02498877,113410.0,113400.0,0.23617684]
[1761716436129,0.02498877,113410.0,113400.0,0.22357684]
[1761716437787,0.31283006,113410.0,113400.0,0.002]
[1761716437981,0.33186127,113410.0,113400.0,0.002]
[1761716438158,0.28189127,113410.0,113400.0,0.19196684]
[1761716438358,0.22037127,113410.0,113400.0,0.19196684]
[1761716438765,0.23331006,113410.0,113400.0,0.19196684]
[1761716438969,0.25234127,113410.0,113400.0,0.19196684]
[1761716439140,0.07598998,113410.0,113400.0,0.19196684]
[1761716439342,0.05695877,113410.0,113400.0,0.19196684]
[1761716439656,0.02498877,113410.0,113400.0,0.20556684]
[1761716440738,0.02498877,113410.0,113400.0,0.57554137]
[1761716441073,0.02498877,113410.0,113400.0,0.20556684]
[1761716441270,0.0249835,113410.0,113400.0,0.20556684]
[1761716442306,0.0249835,113410.0,113400.0,0.57554137]
[1761716442540,0.00846835,113410.0,113400.0,0.66536038]
[1761716443837,0.00846835,113410.0,113400.0,0.66436038]
[1761716444022,0.00846835,113410.0,113400.0,0.66636038]
[1761716444228,0.00846835,113410.0,113400.0,0.66536038]
[1761716444439,0.00846835,113410.0,113400.0,0.69285162]
[1761716444637,0.00846835,113410.0,113400.0,0.32287709]
[1761716444856,0.00846835,113410.0,113400.0,0.69285162]
[1761716445476,0.00846835,113410.0,113400.0,0.66636038]
[1761716446473,0.00846835,113410.0,113400.0,1.41251719]
[1761716446652,0.00021143,113410.0,113400.0,1.41251719]
[1761716446851,0.00021143,113410.0,113400.0,1.43900726]
[1761716447265,0.00021143,113410.0,113400.0,1.80698179]
[1761716447482,0.00021143,113410.0,113400.0,1.43600726]
[1761716447704,0.00021143,113410.0,113400.0,1.44100726]
[1761716448965,0.0002,113460.0,113440.0,0.17630465]
[1761716449135,0.00028518,113460.0,113450.0,1.04187493]
[1761716449361,1e-08,113460.0,113450.0,1.42544946]
[1761716449718,1e-08,113460.0,113450.0,1.45192527]
[1761716450165,1e-08,113460.0,113450.0,0.67579393]
[1761716450410,1e-08,113460.0,113450.0,1.08295074]
[1761716450812,1e-08,113460.0,113450.0,1.04676846]
[1761716451014,1e-08,113460.0,113450.0,0.24697492]
[1761716451232,0.03197001,113460.0,113450.0,0.57687364]
[1761716451437,0.01899835,113480.0,113460.0,0.17627357]
[1761716451636,0.00164305,113490.0,113480.0,0.1762425]
[1761716451870,0.00212585,113490.0,113480.0,0.55981703]
[1761716452091,0.00212579,113490.0,113480.0,0.57341703]
[1761716452284,0.00289915,113490.0,113480.0,0.59989284]
[1761716452620,0.00307778,113490.0,113480.0,0.57341703]
[1761716453256,0.00230442,113490.0,113480.0,0.56690978]
[1761716453733,0.00212579,113490.0,113480.0,0.56690978]
[1761716454343,0.00212579,113490.0,113480.0,0.19693525]
[1761716454543,0.00212579,113490.0,113480.0,0.56690978]
[1761716454950,0.00381598,113490.0,113480.0,0.56690978]
[1761716455286,0.00381598,113490.0,113480.0,0.55830899]
[1761716455764,0.00399461,113490.0,113480.0,0.16326649]
[1761716455938,0.00399461,113490.0,113480.0,0.53324102]
[1761716456710,0.00399461,113490.0,113480.0,0.16326649]
[1761716457104,0.00399461,113490.0,113480.0,0.53324102]
[1761716457705,0.00381598,113490.0,113480.0,0.53324102]
[1761716458349,0.00399461,113490.0,113480.0,0.16326649]
[1761716458523,0.00381598,113490.0,113480.0,0.63666003]
[1761716459143,0.00381598,113490.0,113480.0,0.17686649]
[1761716459348,0.00381598,113490.0,113480.0,0.57331772]
[1761716459685,0.00381598,113490.0,113480.0,0.54684102]
[1761716460782,0.21219159,113490.0,113480.0,0.0136]
[1761716460983,0.24974826,113490.0,113480.0,0.17550698]
[1761716461195,0.07352128,113490.0,113480.0,0.1762425]
[1761716461400,0.07369991,113490.0,113480.0,0.1762425]
[1761716461806,0.24992689,113490.0,113480.0,0.164774]
[1761716462032,0.24974826,113490.0,113480.0,0.164774]
[1761716462249,0.29971826,113490.0,113470.0,0.18623804]
[1761716462467,0.00017863,113480.0,113470.0,0.18623804]
[1761716462694,0.62984277,113490.0,113480.0,0.1762425]
[1761716462918,0.4118308,113490.0,113480.0,0.1762425]
[1761716463143,0.41352099,113490.0,113480.0,0.1762425]
[1761716463378,0.58974797,113490.0,113480.0,0.1762425]
[1761716463597,0.41352099,113490.0,113480.0,0.1762425]
[1761716463817,0.38397099,113490.0,113480.0,0.1762425]
[1761716464033,0.01200099,113490.0,113480.0,0.54621703]
[1761716464425,0.01200099,113490.0,113480.0,0.63603604]
[1761716464835,0.01200099,113490.0,113480.0,0.2027167]
[1761716464981,0.01200099,113490.0,113480.0,0.1762425]
[1761716465523,0.01200099,113490.0,113480.0,0.16764169]
[1761716465908,0.04414962,113490.0,113480.0,0.16764169]
[1761716466533,0.01200099,113490.0,113480.0,0.16764169]
[1761716467783,0.01200099,113490.0,113480.0,0.1561737]
[1761716468404,0.2491266,113490.0,113480.0,0.1762425]
[1761716468608,0.24894797,113490.0,113480.0,0.1762425]
[1761716468850,0.26782179,113490.0,113480.0,0.1762425]
[1761716469046,0.07272099,113490.0,113480.0,0.1762425]
[1761716469250,0.07289962,113490.0,113480.0,0.1762425]
[1761716469676,0.2491266,113490.0,113480.0,0.1762425]
[1761716469909,0.26782342,113490.0,113480.0,0.1762425]
[1761716470955,0.26782342,113490.0,113480.0,0.16190699]
[1761716471917,0.26782342,113490.0,113470.0,0.18623804]
[1761716471918,0.40277243,113490.0,113470.0,0.18623804]
[1761716472122,0.36841224,113490.0,113480.0,0.1762425]
[1761716472456,0.02918625,113490.0,113480.0,0.1762425]
[1761716472681,0.01048943,113490.0,113480.0,0.1762425]
[1761716473385,0.01048943,113490.0,113480.0,0.15617268]
[1761716473609,0.0103108,113490.0,113480.0,0.15617268]
[1761716473826,0.0103108,113490.0,113480.0,0.14470421]
[1761716474484,0.0415108,113490.0,113480.0,0.14470421]
[1761716475398,0.0415108,113490.0,113480.0,0.13610299]
[1761716475613,0.0415108,113490.0,113480.0,3.28353516]
[1761716476079,0.04155514,113490.0,113480.0,3.28353516]
[1761716476525,0.26838716,113490.0,113480.0,3.28353516]
[1761716478133,0.26838716,113490.0,113480.0,3.32367467]
[1761716478354,0.28428853,113490.0,113480.0,3.32367467]
[1761716478588,0.28597874,113490.0,113480.0,3.32367467]
[1761716479296,1.15577445,113490.0,113480.0,3.14743217]
[1761716479510,1.5114475,113490.0,113480.0,3.14743217]
[1761716479744,0.8031158,113490.0,113480.0,3.08831962]
[1761716480870,0.85068998,113490.0,113480.0,3.08831962]
[1761716481077,0.71329679,113490.0,113480.0,3.08831962]
[1761716481282,0.76086519,113490.0,113480.0,3.08831962]
[1761716481700,0.67104618,113490.0,113480.0,3.08831962]
[1761716482494,0.68678179,113490.0,113480.0,3.08831962]
[1761716483325,0.68678179,113490.0,113480.0,3.08258495]
[1761716483785,0.62347778,113490.0,113480.0,3.08258495]
[1761716485129,0.57834778,113490.0,113480.0,3.25882745]
[1761716485966,0.4021208,113490.0,113480.0,3.25882745]
[1761716486418,0.6710508,113490.0,113480.0,3.25882745]